Cogmind - Beta 15 @@@ ROGUE MODE // 2025.05.06 @ 21:41:39 Player: CosmicStarfish Result: Self-destructed Performance ------------- Evolutions (0) 0 Regions Visited (3) 600 Robots Destroyed (8) 40 Value Destroyed (161) 161 Prototype IDs (0) 0 Alien Tech Used (0) 0 Bonus (0) 0 TOTAL SCORE: 801 Bonus ------- None Cogmind --------- Core Integrity 159/250 Matter 273/300 Energy 250/250 System Corruption 3% Temperature Cool (67) Movement Treading (160) Location -7/Recycling Parts ------- > --- POWER (1) -------- Ion Engine > --- PROPULSION (2) --- Light Treads Light Treads > --- UTILITY (2) ------ Medium Storage Unit Improved Terrain Scanner > --- WEAPON (2) ------- Medium Laser > --- INVENTORY (10) --- Light Ion Engine Light Ion Engine Small Storage Unit Improved Terrain Scanner Targeting Computer Scrap Shield Mining Laser Peak State ------------ > --- POWER ------------ Ion Engine > --- PROPULSION ------- Light Treads Light Treads > --- UTILITY ---------- Medium Storage Unit Improved Terrain Scanner > --- WEAPON ----------- Small Laser Assault Rifle > --- INVENTORY -------- Light Ion Engine Light Ion Engine Small Storage Unit Improved Terrain Scanner Targeting Computer Scrap Shield Medium Laser Mining Laser [Rating: 10] Favorites ----------- Power Ion Engine Engine Ion Engine Propulsion Light Treads Treads Light Treads Utility Improved Terrain Scanner Device Improved Terrain Scanner Storage Medium Storage Unit Weapon Assault Rifle Energy Gun Small Laser Ballistic Gun Assault Rifle Build | -11 -10 -10 -7 ------- Run | Yrd Mat Sub Rec Slots Evolved . | . . . . Power . | . . . . Propulsion . | . . . . Utility . | . . . . Weapon . | . . . . Parts Attached 9 | 7 1 . 1 Power 1 | 1 . . . Engine 1 | 1 . . . Core . | . . . . Reactor . | . . . . Propulsion 2 | 2 . . . Treads 2 | 2 . . . Leg . | . . . . Wheel . | . . . . Hover . | . . . . Flight . | . . . . Utility 3 | 2 1 . . Device 1 | 1 . . . Storage 2 | 1 1 . . Processor . | . . . . Hackware . | . . . . Protection . | . . . . Artifact . | . . . . Weapon 3 | 2 . . 1 Energy Gun 2 | 1 . . 1 Energy Cannon . | . . . . Ballistic Gun 1 | 1 . . . Ballistic Cannon . | . . . . Launcher . | . . . . Special Weapon . | . . . . Impact Weapon . | . . . . Slashing Weapon . | . . . . Piercing Weapon . | . . . . Special Melee Weapon . | . . . . Unidentified Prototypes . | . . . . Parts Lost 2 | . . . 2 Power . | . . . . Propulsion . | . . . . Utility . | . . . . Weapon 2 | . . . 2 Highest Loss Streak 2 | . . . 2 To Critical Strikes . | . . . . Average Backups 5 | 1 6 7 7 Power 1 | . 2 2 2 Propulsion . | . . . . Utility 2 | . 2 3 4 Weapon 1 | . 2 2 1 Tool/Special . | . . . . Unused Backups 5 | . . . 5 Power 1 | . . . 1 Propulsion . | . . . . Utility 3 | . . . 3 Weapon 1 | . . . 1 Tool/Special . | . . . . Average Slot Usage (%) 100 | . 100 100 100 Engine 14 | . 14 14 14 Treads 28 | . 28 28 28 Device 14 | . 14 14 14 Storage 14 | . 14 14 14 Energy Gun 14 | . 14 14 14 Ballistic Gun 14 | . 14 14 14 Peak Build Rating 10 | 9 9 10 10 Average Rating 8 | 6 9 9 9 On Entrance 7 | . 9 9 10 Naked Turns . | . . . . Heaviest Build 19 | 14 19 19 19 Greatest Support 40 | 40 40 40 40 Greatest Overweight (x) . | . . . . Average Overweight (x) . | . . . . Largest Inventory Capacity 10 | 8 10 10 10 Average Capacity 9 | 7 9 10 10 Most Carried 9 | 5 7 9 9 Average Carried 5 | 1 6 7 8 Final Capacity 10 | 8 10 10 10 Final Carried 9 | 5 7 9 8 Class Distribution -------------------- 100% | Mutant Dominant Class ---------------- Mutant | -10/Materials Mutant | -10/Subcaves Mutant | -7/Recycling Resources | -11 -10 -10 -7 ----------- Run | Yrd Mat Sub Rec Matter Collected 376 | 336 22 18 . Remotely . | . . . . Salvage Created 280 | 196 . . 84 Parts 21 | 15 . . 6 Haulers Intercepted . | . . . . Recyclers Shooed 1 | 1 . . . Parts Field Recycled . | . . . . Retrieved Matter . | . . . . Parts Self-Destructed 7 | . . 7 . Prevented . | . . . . Kills | -11 -10 -10 -7 ------- Run | Yrd Mat Sub Rec Combat Hostiles Destroyed 2 | . . . 2 Guns 1 | . . . 1 Classes Destroyed 3 | 2 . . 1 Tunneler 5 | 5 . . . Recycler 1 | 1 . . . Programmer 2 | . . . 2 Best Kill Streak 3 | 3 . . 1 Combat Bots Only 1 | . . . 1 Max Kills in Single Turn 1 | 1 . . 1 Gunslinging . | . . . . Exploded . | . . . . Melee . | . . . . Uniques/NPCs Destroyed . | . . . . Combat | -11 -10 -10 -7 -------- Run | Yrd Mat Sub Rec Hostile Shots Fired 71 | . . . 71 Missed 22 | . . . 22 Hits 49 | . . . 49 Melee 1 | . . . 1 Projectile 48 | . . . 48 Damage Taken 552 | . . 8 544 Core 91 | . . . 91 Absorbed by Shields . | . . . . Core Remaining (%) 100 | 100 . . . Volleys Fired 42 | 22 4 6 10 Largest 2 | 2 1 2 2 Hottest 70 | 60 20 60 70 Shots Fired 70 | 41 4 7 18 Gun 70 | 41 4 7 18 Cannon . | . . . . Launcher . | . . . . Special . | . . . . Kinetic 41 | 22 4 6 9 Thermal 29 | 19 . 1 9 Explosive . | . . . . Electromagnetic . | . . . . Robot Hit Streak 6 | 6 1 2 4 Robot Miss Streak 3 | 3 2 3 2 Penetration Max . | . . . . Secondary Targets . | . . . . Shots Hit Robots 44 | 26 1 4 13 Core Hits 12 | 7 . 1 4 Critical Kills . | . . . . Critical Parts Destroyed 1 | . . . 1 Critical Strikes 1 | . . . 1 Destroy 1 | . . . 1 Melee Attacks . | . . . . Impact . | . . . . Slashing . | . . . . Piercing . | . . . . Sneak Attacks . | . . . . Combat Hostiles . | . . . . Follow-up Attacks . | . . . . Damage Inflicted 548 | 295 12 49 192 Guns 548 | 295 12 49 192 Cannons . | . . . . Explosions . | . . . . Melee . | . . . . Ramming . | . . . . Kinetic 293 | 141 12 49 91 Thermal 255 | 154 . . 101 Explosive . | . . . . Electromagnetic . | . . . . Impact . | . . . . Slashing . | . . . . Piercing . | . . . . Highest Corruption 3 | . . . 3 Average Corruption 2 | . . . 2 Corruption Purged . | . . . . Corruption Blocked . | . . . . Overload Shots . | . . . . Overflow Damage . | . . . . Projectiles . | . . . . Explosions . | . . . . Melee . | . . . . Knockbacks . | . . . . Impact . | . . . . Kinetic . | . . . . Secondary . | . . . . Self-Inflicted Damage . | . . . . Shots . | . . . . Rammed . | . . . . Targets Rammed . | . . . . Kicked . | . . . . Crushed . | . . . . Highest Temperature 67 | . . . 67 Average Temperature 25 | . . . 25 Received Heat Transfer 72 | . . 6 66 Siege Activations . | . . . . Martial Activations . | . . . . Shielding Activations . | . . . . Robots Disrupted . | . . . . Combat Hostiles . | . . . . Robots Corrupted . | . . . . Combat Hostiles . | . . . . Parts Fried . | . . . . Impact Corruptions . | . . . . Robots Melted 1 | . . . 1 Combat Hostiles 1 | . . . 1 Parts Melted . | . . . . Heat Transferred 492 | 350 . . 142 Parts Sabotaged . | . . . . Parts Stolen . | . . . . Parts Stripped . | . . . . Power Chain Reactions . | . . . . Alert | -11 -10 -10 -7 ------- Run | Yrd Mat Sub Rec Maximum Alert Level . | . . . . Low Security (%) 100 | 100 100 . 100 Level 1 . | . . . . Level 2 . | . . . . Level 3 . | . . . . Level 4 . | . . . . Level 5 . | . . . . High Security . | . . . . Max Security . | . . . . Peak Influence 21 | 15 . . 21 Initial . | . . . . Average 1 | 1 . . 6 Influence Increases 101 | 30 . 30 41 Destroy 0b10 Robot/C 40 | . . . 40 Destroy 0b10 Robot/NC 30 | 30 . . . Destroy Structure 1 | . . . 1 Lose Combat Pursuer 30 | . . 30 . Influence Decreases 90 | 30 . 30 30 Time Decay 70 | 30 . 30 10 Lost Part 20 | . . . 20 Squads Dispatched . | . . . . Investigation . | . . . . Extermination . | . . . . Reinforcement . | . . . . Assault . | . . . . Garrison . | . . . . Intercept . | . . . . Searches Triggered . | . . . . Construction Impeded . | . . . . Haulers Reinforced . | . . . . Active Scanning Responses . | . . . . Cargo Convoy Interrupts . | . . . . Stealth | -11 -10 -10 -7 --------- Run | Yrd Mat Sub Rec Distress Signals . | . . . . Communications Jammed . | . . . . Distress Signals . | . . . . Times Spotted 14 | . 3 5 6 Peak Tracking Total 6 | . 1 3 6 Tactical Retreats 1 | . . 1 . Traps | -11 -10 -10 -7 ------- Run | Yrd Mat Sub Rec Traps Triggered . | . . . . Indirectly . | . . . . Trap Hack Attempts . | . . . . Triggered . | . . . . Disarmed . | . . . . Reprogrammed . | . . . . Reused . | . . . . Traps Extracted . | . . . . Installed . | . . . . Triggered . | . . . . Machines | -11 -10 -10 -7 ---------- Run | Yrd Mat Sub Rec Machines Disabled . | . . . . Max in Single Turn . | . . . . Machines Repaired . | . . . . Machines Dismantled . | . . . . Machines Sabotaged . | . . . . Overloaded Fab Kills . | . . . . Hacking | -11 -10 -10 -7 --------- Run | Yrd Mat Sub Rec Machines Accessed . | . . . . Terminals . | . . . . Fabricators . | . . . . Repair Stations . | . . . . Recycling Units . | . . . . Scanalyzers . | . . . . Garrison Access . | . . . . Total Hacks . | . . . . Successful . | . . . . Failed . | . . . . Catastrophic . | . . . . Database Lockouts . | . . . . Manual . | . . . . Terminals . | . . . . Fabricators . | . . . . Repair Stations . | . . . . Recycling Units . | . . . . Scanalyzers . | . . . . Garrison Access . | . . . . Terminal Hacks . | . . . . Fabricator Hacks . | . . . . Repair Station Hacks . | . . . . Recycling Unit Hacks . | . . . . Scanalyzer . | . . . . Garrison Access Hacks . | . . . . Unauthorized Hacks . | . . . . Terminals . | . . . . Fabricators . | . . . . Repair Stations . | . . . . Recycling Units . | . . . . Scanalyzers . | . . . . Garrison Access . | . . . . Data Cores Recovered . | . . . . Used . | . . . . Hacking Detections . | . . . . Full Trace Events . | . . . . Feedback Events . | . . . . Feedback Blocked . | . . . . Robot Schematics Acquired . | . . . . Robots Built . | . . . . Authchips . | . . . . Time . | . . . . Total Robot Build Rating . | . . . . Part Schematics Acquired . | . . . . Parts Built . | . . . . Authchips . | . . . . Time . | . . . . Total Part Build Rating . | . . . . Parts Repaired . | . . . . Time . | . . . . Parts Recycled . | . . . . Recycled Matter . | . . . . Retrieved Matter . | . . . . Retrieved Components . | . . . . Parts Scanalyzed . | . . . . Part Schematics Acquired . | . . . . Parts Damaged . | . . . . Bothacking | -11 -10 -10 -7 ------------ Run | Yrd Mat Sub Rec Used RIF Installer . | . . . . Robots Hacked . | . . . . Non-combat . | . . . . Combat . | . . . . Robot Hacks Applied . | . . . . Relay Couplers Released . | . . . . Fabnet Peak Effective % . | . . . . Robots Rewired . | . . . . Allies Hacked . | . . . . Hacks Repelled . | . . . . Allies | -11 -10 -10 -7 -------- Run | Yrd Mat Sub Rec Total Allies . | . . . . Largest Group . | . . . . Highest-Rated Group . | . . . . Highest-Rated Ally . | . . . . Total Orders . | . . . . Ally Attacks . | . . . . Total Damage . | . . . . Kills . | . . . . Allies Corrupted . | . . . . Allies Melted . | . . . . Intel | -11 -10 -10 -7 ------- Run | Yrd Mat Sub Rec Active Infowar (turns) 539 | 105 215 170 49 Terrain 539 | 105 215 170 49 Robot Analysis Total . | . . . . Derelict Logs Recovered . | . . . . Drone Launches . | . . . . Drone Recoveries . | . . . . Exploration | -11 -10 -10 -7 ------------- Run | Yrd Mat Sub Rec Turns Passed 694 | 260 215 170 49 Spaces Moved 356 | 128 120 98 10 Core 29 | 29 . . . Treads 327 | 99 120 98 10 Legs . | . . . . Wheels . | . . . . Hover . | . . . . Flight . | . . . . Fastest Speed 50 | 50 160 160 160 Average Speed 151 | 135 160 160 160 Slowest Speed 160 | 160 160 160 160 Overloaded Moves . | . . . . Propulsion Burnouts . | . . . . Robots Hopped . | . . . . Potential Cave-ins . | . . . . Cave-ins Triggered . | . . . . Exploration Rate (%) 12 | 5 25 14 5 Regions Visited 3 Branch Regions 2 Pre-discovered Areas . | . . . . Known Exits Taken . | . . . . Unknown Exits Taken 3 | 1 1 1 . Scrap Searched . | . . . . Spaces Dug . | . . . . Terrain Destroyed . | . . . . Melee . | . . . . Projectile . | . . . . AOE . | . . . . Terrain Rammed . | . . . . Walls Destroyed . | . . . . Machines Disabled . | . . . . Actions | -11 -10 -10 -7 --------- Run | Yrd Mat Sub Rec Total 440 | 172 139 104 25 Wait 24 | 7 14 . 3 Move 353 | 127 119 97 10 Hop . | . . . . Pick Up 9 | 7 1 1 . Fast Attach 7 | 7 . . . Attach 1 | . . . 1 Detach . | . . . . Swap 1 | . 1 . . Drop 2 | 2 . . . Fire 42 | 22 4 6 10 Melee . | . . . . Ram . | . . . . Kick . | . . . . Crush . | . . . . Escape Stasis . | . . . . Rewire 1 | . . . 1 Trap . | . . . . Miscellaneous . | . . . . Route ------- -11/Scrapyard -10/Materials (discovered 2 exits: [*Min] / [*Sub]) -10/Subcaves -7/Recycling History --------- Turn | Location | Event 5 | -11/Scrapyard | Discovered new exit (range 14) 261 | -11/Scrapyard | Entered Materials 262 | -10/Materials | Met a group of wandering Federalists 306 | -10/Materials | Build established: Mutant 331 | -10/Materials | Discovered new exit (range 16) 468 | -10/Materials | Discovered new exit (range 7) 476 | -10/Materials | Entered Subcaves 477 | -10/Subcaves | Continued accompanying wandering Federalists (5) 477 | -10/Subcaves | Approached by a straggling Scientist 573 | -10/Subcaves | Shifting Twisted Machinery released Scrap Shield 596 | -10/Subcaves | Discovered new exit (range 15) 611 | -10/Subcaves | Shifting Twisted Machinery released Scrap Shield 624 | -10/Subcaves | Lost 4 allies 646 | -10/Subcaves | Entered Recycling 647 | -7/Recycling | Met a Zionite searching for Scraptown 695 | -7/Recycling | Self-destructed Last Messages --------------- to the caves before I'm caught. You'd best do the same." 00657_ L-41 Fighter springs to life. 00658_ P-60 Hacker springs to life. 00658_ Attempting to rewire Y-54 Guardian. 00658_ P-60 Hacker springs to life. 00658_ I-36 Angel springs to life. 00658_ Y-54 Guardian springs to life. 00661_ P-60 Hacker resets P-60 Hacker, system corruption cleaned. 00669_ P-60 Hacker destroyed. 00672_ P-60 Hacker suffers critical hit (Destroy). 00672_ Destroyed Imp. Heat Sink. 00674_ Sml. Laser destroyed. 00687_ P-60 Hacker heat damages Gravmag System. 00687_ Destroyed Gravmag System. 00691_ P-60 Hacker heat damages core (-8). 00692_ R-06 Scavenger collects Imp. Heat Sink. 00693_ Assault Rifle destroyed. Map ----- +----------------------------------------------------+ | ?????????????????????????????????????????????????? | | ?????????????????????????????????????????????????? | | ?????????????????????????????????????????????????? | | ?????????????????????????????????????????????????? | | ?????????????????????????????????????????????????? | | ?????????????????????????????????????????????????? | | ?????????????????????????????????????????????????? | | ?????????????????????????????????????????????????? | | ?????????????????????????????????????????????????? | | ?????????????????????????????????????????????????? | | ?????????????????????????????????????????????????? | | ?????????????????????????? ?? ???????????????????? | | ?????????????????????????????????????????????????? | | ???????????????????????#?????????????????????????? | | ???????????????????????#???????????#?????????????? | | ??????????????????????????#??????????????????????? | | ????????????????????????????????#????????????????? | | ?????????????????????????????????????#???????????? | | ??????????????????????????????##?????????????????? | | ??????????????#?#?????????????#?#????????????????? | | ??????????????????????#??????????????????????????? | | ?????????????????????????????????????????????????? | | ???????????"Y"###################????????????????? | | ?????????? #????????????????? | | ?????????? #????????#???????? | | ?????????? ur@%| #????????????????? | | ???????????????#?#########l######????????????????? | | ????????????????? ???# ! =Y #?????????????????? | | ???????????? ????????# u #?????????????????? | | ?????????????????????# u a #?????????????????? | | ???????????????? ????# sd #?????????????????? | | ?????????????????????# | iu#??????#??????????? | | ?????????????????????# ! [Y#?????????????????? | | ????????????? ?? ????# ] #?????????????????? | | ????????????? ???????# /! ! #?????????????????? | | ?????????????????????###########?????????????????? | | ??????????????????#?##???????????????????????????? | | ??????????????????????????????????#??????????????? | | ?????????????????????????????#???????????????????? | | | | | | | | | | | | | | | | | | | | | | | +----------------------------------------------------+ Best States ------------- Heat Dissipation 25 Energy Generation 10 Energy Capacity 250 Matter Stores 300 Matter Capacity 300 Sight Range 16 Terrain Scan Range 16 Terrain Scan Density 10 Evasion (%) 50 Recoil Reduction 2 Item Schematics ----------------- None Robot Schematics ------------------ None Fabricated ------------ Nothing Repaired ---------- Nothing Alien Tech Used ----------------- None Achievements -------------- None Challenges ------------ None Game ------ Seed TripodDrainedBank Manual? 0 Play Time 00:09:22 Cumulative 38.4 hours Start 2025.05.06 @ 21:30:27 End 2025.05.06 @ 21:41:39 Sessions 1 Manual Loads 0 Difficulty Rogue Special Mode None Game No. 87 Rogue 46 Adventurer 41 Explorer 0 Win Type - Total 1 Types 1/0/0/0/0/0/0/0/0/0 Lore% 29 Gallery% 37 Achievement% 44 Wizard Run 0 Options --------- Layout 1 ASCII 0 Keyboard 0 Movement Arrows Keybinds 0 Fullscreen 1 Font 24/Swanston Map View 50x35 Zoom Use 0% Tactical HUD 1 Map Filters NONE Filters NONE Steam 1 RUN: d1887795-e3b0-4c63-b42b-db48eadc2f4a